lending/lending_fUSD_20240908
["ID","MTS","AMOUNT","RATE_DAILY","PERIOD"]
[337531719,1725762641149,-207.70801989,0.00014899,2]
[337531720,1725762641158,-56582.0726,0.000149,2]
[337531721,1725762641168,-207.70801989,0.000149,2]
[337531722,1725762641177,-265.18761035,0.000149,2]
[337531723,1725762641186,-500.0,0.00014973,2]
[337531724,1725762641195,-399.39903551,0.00014973,2]
[337531725,1725762641205,-326.98,0.0001498,3]
[337531726,1725762641214,-490.51,0.0001498,3]
[337531727,1725762641223,-163.49,0.00014989,3]
[337531728,1725762641232,-26928.7939211,0.0001499,3]
[337531729,1725762641241,-153.81,0.0001499,2]
[337531730,1725762641250,-101730.999258,0.0001499,3]
[337531731,1725762641259,-190.96155235,0.00014997,2]
[337531732,1725762641269,-199999.9374419,0.00014999,5]
[337531733,1725762641278,-517.0,0.00015,2]
[337531734,1725762641287,-333252.52090725,0.00015,2]
[337531735,1725762641296,-165622.33215417,0.00015,2]
[337531736,1725762641305,-162684.60776158,0.00015,2]
[337531737,1725762641315,-3940495.87988753,0.00015,2]
[337531739,1725762643491,-2930.63912594,0.00015,2]
[337531740,1725762646849,-40130.04588524,0.00015,2]
[337531741,1725762955794,267.09,0.00010959,2]
[337531748,1725763190400,750.0,0.00011,2]
[337531753,1725763600043,155.77,0.00010959,2]
[337531770,1725763831692,-216.07,0.00012038,2]
[337531771,1725763831702,-180.57994585,0.00013,2]
[337531772,1725763831715,-619.42005415,0.00013,2]
[337531773,1725763831725,-150.0,0.00013488,2]
[337531774,1725763831734,-300.0,0.00013641,2]
[337531775,1725763831744,-624.0,0.00013642,2]
[337531776,1725763831754,-557.0,0.00013642,2]
[337531777,1725763831764,-811.0,0.00013642,2]
[337531778,1725763831773,-150.0,0.00013642,2]
[337531779,1725763831783,-931.0,0.00013642,2]
[337531780,1725763831792,-1921.0,0.00013642,2]
[337531781,1725763831802,-536.90343,0.00013701,2]
[337531782,1725763831811,-157.7,0.00013771,2]
[337531783,1725763831822,-152.42,0.00013774,2]
[337531784,1725763831832,-250.0,0.00013781,2]
[337531785,1725763831841,-150.0,0.00013827,2]
[337531786,1725763831851,-250.0,0.0001388,2]
[337531787,1725763831862,-189.2,0.00013935,2]
[337531788,1725763831871,-150.0,0.00013999,2]
[337531789,1725763831880,-500.0,0.00014,2]
[337531790,1725763831891,-500.0,0.00014,2]
[337531791,1725763831901,-500.0,0.00014,2]
[337531792,1725763831911,-500.0,0.00014,2]
[337531793,1725763831922,-500.0,0.00014,2]
[337531794,1725763831931,-500.0,0.00014,2]
[337531795,1725763831940,-500.0,0.00014,2]
[337531796,1725763831949,-504.68,0.00014,2]
[337531797,1725763831958,-500.0,0.00014,2]
[337531798,1725763831968,-500.0,0.00014,2]
[337531799,1725763831977,-500.0,0.00014,2]
[337531800,1725763831988,-500.0,0.00014,2]
[337531801,1725763831998,-500.0,0.00014,2]
[337531802,1725763832007,-500.0,0.00014,2]
[337531803,1725763832017,-500.0,0.00014,2]
[337531804,1725763832027,-500.0,0.00014,2]
[337531805,1725763832036,-500.0,0.00014,2]
[337531806,1725763832048,-500.0,0.00014,2]
[337531807,1725763832057,-500.0,0.00014,2]
[337531809,1725763832066,-500.0,0.00014,2]
[337531811,1725763832075,-500.0,0.00014,2]
[337531813,1725763832084,-500.0,0.00014,2]
[337531816,1725763832093,-500.0,0.00014,2]
[337531818,1725763832102,-500.0,0.00014,2]
[337531819,1725763832112,-622.48,0.00014,2]
[337531820,1725763832121,-500.0,0.00014,2]
[337531821,1725763832131,-500.0,0.00014,2]
[337531822,1725763832141,-500.0,0.00014,2]
[337531823,1725763832150,-500.0,0.00014,2]
[337531824,1725763832161,-500.0,0.00014,2]
[337531825,1725763832173,-500.0,0.00014,2]
[337531826,1725763832184,-500.0,0.00014,2]
[337531827,1725763832195,-500.0,0.00014,2]
[337531828,1725763832206,-373.25,0.00014,2]
[337531829,1725763832218,-500.0,0.00014,2]
[337531830,1725763832229,-500.0,0.00014,2]
[337531831,1725763832238,-349.99,0.00014,2]
[337531832,1725763832250,-1000.0,0.0001423,2]
[337531833,1725763832262,-216.07,0.00014302,2]
[337531834,1725763832272,-152.42,0.00014551,2]
[337531835,1725763832282,-227.23758,0.00014795,2]
[337531836,1725763832293,-226.0,0.000148,2]
[337531837,1725763832302,-359.0,0.000148,2]
[337531838,1725763832312,-1702.76861,0.0001485,2]
[337531839,1725763832323,-218.803,0.000149,2]
[337531840,1725763832333,-169.32276336,0.000149,2]
[337531841,1725763832342,-229.7,0.0001493,2]
[337531842,1725763832352,-420.0,0.0001495,2]
[337531843,1725763832364,-500.0,0.00014973,2]
[337531844,1725763832374,-611.91180232,0.00014973,2]
[337531845,1725763832384,-641.95,0.0001498,3]
[337531846,1725763832394,-641.91,0.0001498,3]
[337531847,1725763832404,-9096.63849367,0.0001499,3]
[337531848,1725763832475,-4284.58778553,0.0001499,3]
[337531849,1725763832486,-153.81,0.0001499,2]
[337531850,1725763832496,-5893.87467268,0.0001499,3]
[337531851,1725763832507,-2002.97221,0.0001499,3]
[337531852,1725763832520,-4724.88289862,0.0001499,3]
[337531853,1725763832532,-4917.54734119,0.0001499,3]
[337531854,1725763832543,-3347.64236569,0.0001499,3]
[337531855,1725763832556,-6577.56553854,0.0001499,3]
[337531856,1725763832570,-727.5020417,0.0001499,3]
[337531857,1725763832583,-10648.1904562,0.0001499,3]
[337531858,1725763832595,-4783.18391556,0.0001499,3]
[337531867,1725763837745,-569.5689955,0.0001499,3]
[337531868,1725763837758,-441.00459755,0.0001499,3]
[337531869,1725763837769,-1138.8949439,0.0001499,3]
[337531870,1725763837780,-349.87799986,0.0001499,3]
[337531872,1725763837885,-1487.84233302,0.0001499,3]
[337531882,1725763840044,-496.0,0.0001499,3]
[337531883,1725763840055,-1276.2430256,0.0001499,3]
[337531942,1725763844204,-5511.71358468,0.0001499,3]
[337531943,1725763844222,-2631.40179343,0.0001499,3]
[337531944,1725763844242,-374.72962927,0.0001499,3]
[337531945,1725763844262,-7159.07002482,0.0001499,3]
[337531946,1725763844351,-570.62,0.0001499,3]
[337531947,1725763844369,-310.54469105,0.0001499,3]
[337531950,1725763845764,-915.4063297,0.0001499,3]
[337531951,1725763845775,-662.31838505,0.0001499,3]
[337531952,1725763845787,-1426.69041782,0.0001499,3]
[337531953,1725763845798,-300.0,0.0001499,3]
[337531955,1725763845810,-4691.18203615,0.0001499,3]
[337531956,1725763845821,-20013.58779765,0.0001499,3]
[337531957,1725763845992,-1988.86478004,0.0001499,3]
[337531958,1725763846004,-760.2,0.0001499,3]
[337531959,1725763846018,-568.79,0.0001499,3]
[337531961,1725765002545,750.0,0.00011,2]
[337531962,1725765032074,-209.94,0.00012078,2]
[337531963,1725765032084,-166.30316241,0.000129,2]
[337531964,1725765032093,-800.0,0.00013,2]
[337531965,1725765032102,-5990.10118659,0.0001394,2]
[337531966,1725765032114,-898.43881341,0.0001394,2]
[337531967,1725765032123,-189.2,0.00013973,2]
[337531968,1725765032132,-262.06,0.00013985,2]
[337531969,1725765032142,-2437.65841311,0.00013996,2]
[337531970,1725765032152,-962.03,0.00013996,2]
[337531971,1725765032161,-150.0,0.00013999,2]
[337531972,1725765032170,-300.0,0.00013999,2]
[337531973,1725765032179,-500.0,0.00014,2]
[337531974,1725765032188,-500.0,0.00014,2]
[337531975,1725765032198,-500.0,0.00014,2]
[337531976,1725765032207,-500.0,0.00014,2]
[337531977,1725765032216,-500.0,0.00014,2]
[337531978,1725765032225,-500.0,0.00014,2]
[337531979,1725765032234,-500.0,0.00014,2]
[337531980,1725765032243,-500.0,0.00014,2]
[337531981,1725765032252,-500.0,0.00014,2]
[337531982,1725765032261,-500.0,0.00014,2]
[337531983,1725765032271,-500.0,0.00014,2]
[337531984,1725765032280,-500.0,0.00014,2]
[337531985,1725765032294,-500.0,0.00014,2]
[337531986,1725765032303,-500.0,0.00014,2]
[337531987,1725765032312,-500.0,0.00014,2]
[337531988,1725765032321,-500.0,0.00014,2]
[337531989,1725765032331,-500.0,0.00014,2]
[337531990,1725765032340,-500.0,0.00014,2]
[337531991,1725765032349,-500.0,0.00014,2]
[337531992,1725765032358,-500.0,0.00014,2]
[337531993,1725765032368,-500.0,0.00014,2]
[337531994,1725765032377,-500.0,0.00014,2]
[337531995,1725765032386,-500.0,0.00014,2]
[337531996,1725765032395,-500.0,0.00014,2]
[337531997,1725765032403,-500.0,0.00014,2]
[337531998,1725765032412,-500.0,0.00014,2]
[337531999,1725765032420,-500.0,0.00014,2]
[337532000,1725765032429,-500.0,0.00014,2]
[337532001,1725765032437,-500.0,0.00014,2]
[337532002,1725765032447,-500.0,0.00014,2]
[337532003,1725765032456,-500.0,0.00014,2]
[337532004,1725765032465,-500.0,0.00014,2]
[337532005,1725765032474,-500.0,0.00014,2]
[337532006,1725765032483,-500.0,0.00014,2]
[337532007,1725765032493,-500.0,0.00014,2]
[337532008,1725765032502,-500.0,0.00014,2]
[337532009,1725765032512,-500.0,0.00014,2]
[337532010,1725765032521,-500.0,0.00014,2]
[337532011,1725765032530,-500.0,0.00014,2]
[337532012,1725765032540,-500.0,0.00014,2]
[337532013,1725765032550,-500.0,0.00014,2]
[337532014,1725765032559,-500.0,0.00014,2]
[337532015,1725765032568,-500.0,0.00014,2]
[337532016,1725765032578,-500.0,0.00014,2]
[337532017,1725765032587,-500.0,0.00014,2]
[337532018,1725765032596,-500.0,0.00014,2]
[337532019,1725765032605,-500.0,0.00014,2]
[337532020,1725765032614,-500.0,0.00014,2]
[337532021,1725765032627,-500.0,0.00014,2]
[337532022,1725765032799,-500.0,0.00014,2]
[337532023,1725765032819,-500.0,0.00014,2]
[337532024,1725765032829,-500.0,0.00014,2]
[337532025,1725765032840,-500.0,0.00014,2]
[337532026,1725765032849,-500.0,0.00014,2]
[337532027,1725765032858,-500.0,0.00014,2]
[337532028,1725765032867,-500.0,0.00014,2]
[337532029,1725765032877,-500.0,0.00014,2]
[337532030,1725765032886,-500.0,0.00014,2]
[337532031,1725765032896,-500.0,0.00014,2]
[337532032,1725765032905,-500.0,0.00014,2]
[337532033,1725765032915,-500.0,0.00014,2]
[337532034,1725765032924,-500.0,0.00014,2]
[337532035,1725765032934,-500.0,0.00014,2]
[337532036,1725765032943,-500.0,0.00014,2]
[337532037,1725765032953,-500.0,0.00014,2]
[337532038,1725765032962,-500.0,0.00014,2]
[337532039,1725765032972,-500.0,0.00014,2]
[337532040,1725765032982,-500.0,0.00014,2]
[337532041,1725765032991,-500.0,0.00014,2]
[337532042,1725765033001,-500.0,0.00014,2]
[337532043,1725765033011,-571.29,0.00014,2]
[337532044,1725765033020,-500.0,0.00014,2]
[337532045,1725765033029,-500.0,0.00014,2]
[337532046,1725765033040,-500.0,0.00014,2]
[337532047,1725765033050,-500.0,0.00014,2]
[337532048,1725765033059,-500.0,0.00014,2]
[337532049,1725765033070,-500.0,0.00014,2]
[337532050,1725765033079,-500.0,0.00014,2]
[337532051,1725765033089,-500.0,0.00014,2]
[337532052,1725765033098,-500.0,0.00014,2]
[337532053,1725765033108,-500.0,0.00014,2]
[337532054,1725765033118,-299.6,0.00014,2]
[337532055,1725765033127,-500.0,0.00014,2]
[337532056,1725765033137,-500.0,0.00014,2]
[337532057,1725765033146,-500.0,0.00014,2]
[337532058,1725765033156,-500.0,0.00014,2]
[337532059,1725765033165,-500.0,0.00014,2]
[337532060,1725765033175,-500.0,0.00014,2]
[337532061,1725765033184,-500.0,0.00014,2]
[337532062,1725765033194,-152.42,0.00014001,2]
[337532063,1725765033204,-250.0,0.00014004,2]
[337532064,1725765033213,-299.08,0.00014107,2]
[337532065,1725765033223,-204.513822,0.00014247,2]
[337532066,1725765033232,-209.94,0.00014342,2]
[337532067,1725765033241,-1000.0,0.00014371,2]
[337532068,1725765033251,-208.743,0.0001485,2]
[337532069,1725765033260,-150.99,0.0001485,2]
[337532070,1725765033269,-226.0,0.000149,2]
[337532071,1725765033279,-359.0,0.000149,2]
[337532072,1725765033289,-366.07600582,0.000149,2]
[337532073,1725765033298,-105387.65560882,0.000149,2]
[337532076,1725765037941,-449.98108234,0.000149,2]
[337532077,1725765038150,-1281.60835563,0.000149,2]
[337532126,1725765040020,-1172.4430183,0.000149,2]
[337532127,1725765040032,-817.7688253,0.000149,2]
[337532128,1725765040043,-4371.98693192,0.000149,2]
[337532129,1725765040055,-6353.56455706,0.000149,2]
[337532144,1725765044121,-635.21123001,0.000149,2]
[337532146,1725765044688,-2778.02518347,0.000149,2]
[337532157,1725765046289,-688.25847694,0.000149,2]
[337532182,1725765255250,158.44,0.00010959,2]
[337532183,1725765594675,196.61,0.0001185,2]
[337532184,1725765749991,262.46,0.00010959,2]
[337532189,1725766124179,-11507.0,0.000132,5]
[337532192,1725766125558,-8262.87574025,0.000122,2]
[337532194,1725766125638,-5166.35195529,0.000122,2]
[337532198,1725766144891,-11507.0,0.000132,5]
[337532199,1725766148010,194.37,0.00011751,2]
[337532200,1725766167169,138220.0,0.00012,2]
[337532201,1725766201121,-11507.0,0.00013,5]
[337532243,1725766240172,-300.0,0.00012499,2]
[337532244,1725766240182,-12022.06075338,0.00013,2]
[337532245,1725766240195,-457.865,0.00013,2]
[337532246,1725766240487,-18171.42443397,0.00013,2]
[337532252,1725766246311,-16340.7,0.00013,2]
[337532253,1725766257580,155.77,0.00010959,2]
[337532254,1725766294691,211.90789311,0.00012935,30]
[337532255,1725766353373,11507.0,0.00013,5]
[337532308,1725766526318,-5000.0,0.00015,20]
[337532309,1725766663198,192.24,0.00011655,2]
[337532310,1725766813507,750.0,0.00011,2]
[337532312,1725767219633,7316.0,0.00011,5]
[337532313,1725767307267,190.14,0.00011542,2]
[337532314,1725767312362,-300.0,0.00012999,2]
[337532315,1725767312392,-1797.10130629,0.00013,2]
[337532316,1725767337307,-1997.41,0.00013,2]
[337532319,1725767432017,-300.0,0.00012999,2]
[337532320,1725767432027,-3116.88,0.00013,2]
[337532321,1725767432265,-1327.25709958,0.00013,2]
[337532322,1725767432276,-14307.41431585,0.00013,2]
[337532338,1725767440194,-1418.97384,0.0001287,2]
[337532339,1725767440205,-1575.95390453,0.00013,2]
[337532343,1725767440801,-929.42889776,0.00013,2]
[337532344,1725767443852,-1739.78701117,0.00013,2]
[337532347,1725767446229,-7341.45984448,0.00013,2]
[337532348,1725767446482,-1580.25000003,0.00013,2]
[337532350,1725767816859,188.14,0.00011623,2]
[337532354,1725768040470,158.44,0.00010959,2]
[337532355,1725768299697,186.61,0.00011612,2]
[337532356,1725768408012,500.0,0.00027,120]
[337532359,1725768533722,249.33,0.00010959,2]
[337532360,1725768623296,750.0,0.00011,2]
[337532367,1725768632227,-211.76559211,0.00012628,2]
[337532369,1725768632238,-150.0,0.00012999,2]
[337532370,1725768632247,-2350.80096034,0.00013,2]
[337532371,1725768632276,-881.08675534,0.00013,2]
[337532372,1725768632332,-2100.0,0.00013,2]
[337532373,1725768632343,-2727.3619961,0.00013,2]
[337532374,1725768632389,-421.24760668,0.00013,2]
[337532375,1725768632494,-584.95187272,0.00013,2]
[337532377,1725768638196,-8222.95254394,0.00013,2]
[337532378,1725768638487,-2930.9,0.00013,2]
[337532379,1725768638520,-5019.42832455,0.00013,2]
[337532399,1725768640291,-569.37695021,0.00013,2]
[337532404,1725768640346,-291.99038354,0.00013,2]
[337532405,1725768640357,-794.56642176,0.00013,2]
[337532406,1725768640368,-545.655,0.00013,2]
[337532407,1725768640380,-458.355,0.00013,2]
[337532408,1725768640410,-500.97903761,0.00013,2]
[337532409,1725768640456,-431.39001,0.00013,2]
[337532410,1725768640467,-588.2445,0.00013,2]
[337532411,1725768640478,-5216.50435997,0.00013,2]
[337532412,1725768640560,-3153.00204471,0.00013,2]
[337532413,1725768640667,-3500.0,0.00013,2]
[337532415,1725768643244,-1578.62846982,0.00013,2]
[337532416,1725768643778,-382.10566969,0.00013,2]
[337532417,1725768643794,-490.45,0.00013,2]
[337532418,1725768643805,-7832.58094494,0.00013,2]
[337532419,1725768643819,-10617.27147713,0.00013,2]
[337532420,1725768643830,-608.1292825,0.00013,2]
[337532423,1725768646452,-550.55427652,0.00013,2]
[337532424,1725768646464,-729.12371714,0.00013,2]
[337532425,1725768646476,-939.883994,0.00013,2]
[337532426,1725768646487,-1753.85498398,0.00013,2]
[337532427,1725768646509,-1034.05360558,0.00013,2]
[337532428,1725768646523,-1214.04783601,0.00013,2]
[337532429,1725768646537,-453.46218221,0.00013,2]
[337532430,1725768646550,-447.4863721,0.00013,2]
[337532431,1725768646596,-740.40033588,0.00013,2]
[337532432,1725768646641,-4919.07120143,0.00013,2]
[337532433,1725768646675,-1185.57,0.00013,2]
[337532434,1725768646689,-585.71,0.00013,2]
[337532435,1725768646704,-1919.57705919,0.00013,2]
[337532436,1725768646727,-9769.14972056,0.00013,2]
[337532437,1725768646739,-6772.36392534,0.00013,2]
[337532439,1725768684543,5000.0,0.00027,120]
[337532440,1725768789895,185.17,0.00011617,2]
[337532441,1725769019094,1000.0,0.00025,60]
[337532442,1725769166715,160.83,0.00010959,2]
[337532443,1725769417238,183.62,0.0001151,2]
[337532444,1725769704721,1066.56347749,0.00012,30]
[337532445,1725769717689,-211.76559212,0.00012655,2]
[337532446,1725769717716,-313.47029,0.0001287,2]
[337532447,1725769717743,-300.0,0.00012999,2]
[337532448,1725769717773,-3262.20816601,0.00013,2]
[337532460,1725769834773,-1285.09053565,0.00013,2]
[337532461,1725769834783,-508.08490007,0.00013,2]
[337532464,1725769837424,-291.91509993,0.00013,2]
[337532465,1725769837433,-1408.08490007,0.0001306,2]
[337532466,1725769837483,-274.39329993,0.0001306,2]
[337532467,1725769837493,-313.4703,0.0001339,2]
[337532468,1725769837503,-286.41,0.00013415,2]
[337532469,1725769837512,-431.53640007,0.00013415,2]
[337532480,1725769838309,-593.0803818,0.00013415,2]
[337532481,1725769838323,-300.0,0.00013415,2]
[337532482,1725769838360,-2228.07664474,0.00013415,2]
[337532483,1725769839448,-459.02,0.00013415,2]
[337532493,1725769842386,-424.71700002,0.00013415,2]
[337532494,1725769842409,-2238.44513602,0.00013415,2]
[337532495,1725769842419,-200.0,0.00013416,2]
[337532496,1725769842428,-3814.77,0.00013432,2]
[337532497,1725769842437,-649.18,0.00013436,2]
[337532498,1725769842448,-250.0,0.00013447,2]
[337532499,1725769842457,-239.27,0.00013453,2]
[337532500,1725769842467,-2050.05105051,0.00013463,2]
[337532509,1725769843103,-386.27894949,0.00013463,2]
[337532510,1725769843113,-250.0,0.00013467,2]
[337532511,1725769843123,-2523.36627852,0.00013469,2]
[337532512,1725769843135,-895.41368158,0.00013469,2]
[337532513,1725769843148,-447.3484677,0.00013469,2]
[337532514,1725769843160,-4309.16542399,0.00013469,2]
[337532515,1725769843173,-1930.16648209,0.00013469,2]
[337532520,1725769845552,-6136.33966612,0.00013469,2]
[337532521,1725769845562,-1000.0,0.00013481,2]
[337532522,1725769845571,-500.0,0.00013484,2]
[337532523,1725769845582,-6926.35234363,0.00013485,2]
[337532524,1725769845980,-802.27765637,0.00013485,2]
[337532525,1725769845990,-150.0,0.00013497,2]
[337532526,1725769845999,-160.73,0.00013504,2]
[337532527,1725769846009,-152.42,0.00013699,2]
[337532528,1725769846018,-183.62,0.00013773,2]
[337532529,1725769846027,-1300.0,0.000139,5]
[337532530,1725769846037,-2600.0,0.00014,5]
[337532531,1725769846046,-313.47029,0.0001402,2]
[337532532,1725769846055,-152.0,0.0001408,3]
[337532533,1725769846064,-150.0,0.000141,2]
[337532534,1725769846074,-3900.0,0.000141,5]
[337532535,1725769846084,-152.0,0.00014134,4]
[337532536,1725769846093,-150.59,0.00014178,2]
[337532537,1725769846103,-152.0,0.00014187,5]
[337532538,1725769846112,-151.0,0.000142,2]
[337532539,1725769846122,-151.0,0.000142,2]
[337532540,1725769846131,-151.0,0.000142,2]
[337532541,1725769846140,-151.0,0.000142,2]
[337532542,1725769846149,-5200.0,0.000142,5]
[337532543,1725769846159,-152.0,0.00014241,6]
[337532544,1725769846168,-184.062439,0.00014247,2]
[337532545,1725769846177,-166.994,0.00014247,2]
[337532546,1725769846187,-152.0,0.00014295,7]
[337532547,1725769846196,-151.0,0.000143,2]
[337532548,1725769846206,-180.0,0.000143,2]
[337532549,1725769846215,-180.0,0.000143,2]
[337532550,1725769846224,-151.0,0.000143,2]
[337532551,1725769846234,-154.689708,0.000143,2]
[337532552,1725769846243,-151.0,0.000143,2]
[337532553,1725769846253,-194.891404,0.000143,2]
[337532554,1725769846263,-194.891404,0.000143,2]
[337532555,1725769846274,-151.0,0.000143,2]
[337532556,1725769846284,-151.0,0.000143,2]
[337532557,1725769846293,-487.582586,0.000143,2]
[337532558,1725769846303,-487.582586,0.000143,2]
[337532559,1725769846313,-6500.0,0.000143,5]
[337532560,1725769846322,-152.0,0.00014348,8]
[337532561,1725769846331,-151.0,0.000144,2]
[337532562,1725769846343,-151.0,0.000144,2]
[337532563,1725769846352,-151.0,0.000144,2]
[337532564,1725769846361,-151.0,0.000144,2]
[337532565,1725769846370,-1300.0,0.000144,5]
[337532566,1725769846379,-152.0,0.00014402,9]
[337532567,1725769846388,-152.0,0.00014455,10]
[337532568,1725769846398,-5851.63653422,0.00014463,7]
[337532569,1725769846442,-502.99430902,0.00014463,7]
[337532572,1725770162880,172.96,0.00011896,2]
[337532573,1725770203615,200.0,0.00015,60]
[337532574,1725770433276,750.0,0.00011,2]
[337532575,1725770683652,171.89,0.00011729,2]
[337532582,1725771031569,-611.0,0.00012899,2]
[337532583,1725771031580,-600.0,0.000129,2]
[337532584,1725771031590,-1000.0,0.0001297,2]
[337532585,1725771031599,-800.0,0.00013,2]
[337532586,1725771031608,-250.0,0.00013577,2]
[337532587,1725771031618,-158.31,0.00013584,2]
[337532588,1725771031627,-243.38,0.00013606,2]
[337532589,1725771031637,-6048.05,0.00013609,2]
[337532590,1725771031647,-160.73,0.00013635,2]
[337532591,1725771031659,-250.0,0.00013637,2]
[337532592,1725771031668,-300.0,0.00013643,2]
[337532593,1725771031677,-250.0,0.00013644,2]
[337532594,1725771031686,-500.0,0.00013658,2]
[337532595,1725771031696,-1000.0,0.00013667,2]
[337532596,1725771031705,-727.75,0.00013676,2]
[337532597,1725771031714,-189.9,0.00013689,2]
[337532598,1725771031723,-200.0,0.00013697,2]
[337532599,1725771031732,-152.42,0.00013699,2]
[337532600,1725771031741,-777.44,0.00013709,2]
[337532601,1725771031750,-173.26,0.00013762,2]
[337532602,1725771031759,-200.0,0.00013773,2]
[337532603,1725771031769,-1200.0,0.000139,5]
[337532604,1725771031778,-171.89,0.00013993,2]
[337532605,1725771031787,-2400.0,0.00014,5]
[337532606,1725771031796,-150.0,0.000141,2]
[337532607,1725771031805,-3700.0,0.000141,5]
[337532608,1725771031814,-421.24760668,0.00014129,2]
[337532609,1725771031823,-4900.0,0.000142,5]
[337532610,1725771031832,-6200.0,0.000143,5]
[337532611,1725771031842,-166.994,0.000144,2]
[337532613,1725771031851,-1330.63233,0.000144,2]
[337532615,1725771031860,-1200.0,0.000144,5]
[337532617,1725771031869,-12175.36915676,0.00014463,7]
[337532618,1725771031878,-251.841989,0.00014463,2]
[337532619,1725771031887,-152.168474,0.00014463,2]
[337532620,1725771031896,-151.0,0.00014463,2]
[337532621,1725771031909,-151.0,0.00014463,2]
[337532622,1725771031918,-151.0,0.00014463,2]
[337532623,1725771031927,-1200.0,0.000145,5]
[337532624,1725771031938,-750.127055,0.00014504,2]
[337532625,1725771031950,-750.127055,0.00014504,2]
[337532626,1725771031959,-151.0,0.00014504,2]
[337532627,1725771031970,-187.919338,0.00014504,2]
[337532628,1725771031981,-187.919338,0.00014504,2]
[337532629,1725771031991,-151.0,0.00014504,2]
[337532630,1725771032001,-256.318836,0.00014504,2]
[337532631,1725771032011,-151.0,0.00014504,2]
[337532632,1725771032020,-151.0,0.00014504,2]
[337532633,1725771032029,-151.0,0.00014504,2]
[337532634,1725771032038,-10601.22,0.00014504,2]
[337532635,1725771032047,-152.0,0.00014509,11]
[337532636,1725771032057,-184.062439,0.00014521,2]
[337532637,1725771032066,-152.0,0.00014563,12]
[337532638,1725771032076,-1200.0,0.000146,5]
[337532639,1725771032085,-152.0,0.00014616,13]
[337532640,1725771032095,-152.0,0.0001467,14]
[337532641,1725771032105,-1102.25175016,0.000147,2]
[337532642,1725771032114,-1058.15002654,0.000147,2]
[337532643,1725771032124,-1035.88203997,0.000147,2]
[337532644,1725771032134,-151.0,0.000147,2]
[337532645,1725771032143,-151.0,0.000147,2]
[337532646,1725771032152,-151.0,0.000147,2]
[337532647,1725771032162,-180.0,0.000147,2]
[337532648,1725771032171,-180.0,0.000147,2]
[337532649,1725771032179,-151.0,0.000147,2]
[337532650,1725771032189,-198.853208,0.000147,2]
[337532651,1725771032198,-154.689708,0.000147,2]
[337532652,1725771032207,-750.127055,0.000147,2]
[337532653,1725771032216,-750.127055,0.000147,2]
[337532654,1725771032225,-151.0,0.000147,2]
[337532655,1725771032374,-1200.0,0.000147,5]
[337532656,1725771032384,-187.919338,0.000147,2]
[337532657,1725771032393,-187.919338,0.000147,2]